bitfinex-derivatives/quotes_BTCF0:USTF0_20240815
["timestamp","ask_amount","ask_price","bid_price","bid_amount"]
[1723696719166,0.04531211,58215.0,58214.0,6.82124292]
[1723696719372,0.0408016,58215.0,58214.0,6.76112492]
[1723696719962,0.0408016,58215.0,58214.0,6.90352492]
[1723696720560,0.0408016,58215.0,58214.0,7.02327487]
[1723696720761,0.0408016,58215.0,58214.0,6.95368839]
[1723696721365,0.3528,58234.0,58227.0,0.060103]
[1723696721569,0.3528,58234.0,58232.0,0.08550764]
[1723696721866,0.3528,58234.0,58233.0,0.29048344]
[1723696722072,0.3528,58234.0,58233.0,1.08423446]
[1723696722261,0.3529594,58234.0,58233.0,0.32591318]
[1723696722462,0.3529594,58234.0,58233.0,4.01044]
[1723696722463,0.3539594,58234.0,58233.0,4.01044]
[1723696722664,0.3539594,58234.0,58233.0,4.26636716]
[1723696722871,0.3679594,58234.0,58233.0,4.26636716]
[1723696723375,0.4779594,58234.0,58233.0,0.49636716]
[1723696723571,0.5370564,58234.0,58233.0,0.49636716]
[1723696723772,0.4350564,58234.0,58233.0,0.56474114]
[1723696724574,0.4350564,58234.0,58233.0,0.49636716]
[1723696725178,0.5450564,58234.0,58233.0,0.49636716]
[1723696725474,0.5450564,58234.0,58233.0,0.19776716]
[1723696725475,1.4602164,58234.0,58233.0,0.19776716]
[1723696725670,0.0601,58231.0,58228.0,0.06863151]
[1723696725872,0.3608,58229.0,58228.0,0.00025753]
[1723696726376,0.3608,58229.0,58228.0,0.32541981]
[1723696726767,0.3608,58229.0,58228.0,0.32641981]
[1723696727473,0.3688,58229.0,58228.0,0.32641981]
[1723696728173,0.3688,58229.0,58228.0,0.25804583]
[1723696729171,0.3688,58229.0,58228.0,0.25704583]
[1723696729368,0.3688,58229.0,58228.0,0.25804583]
[1723696730865,0.3688,58229.0,58228.0,0.34351901]
[1723696731174,0.3688,58229.0,58228.0,0.39479187]
[1723696731480,0.0001594,58234.0,58230.0,0.060101]
[1723696731672,0.0001594,58234.0,58231.0,0.05105208]
[1723696731975,0.0001594,58234.0,58232.0,0.15370077]
[1723696732166,0.0001594,58234.0,58233.0,0.05105208]
[1723696732367,0.0001594,58234.0,58233.0,0.30799008]
[1723696732567,0.0101594,58234.0,58233.0,0.50298104]
[1723696732768,0.0111594,58234.0,58233.0,0.50298104]
[1723696733170,0.0141594,58234.0,58233.0,0.50298104]
[1723696733368,0.0131594,58234.0,58233.0,0.50298104]
[1723696733667,0.0041594,58234.0,58233.0,0.50298104]
[1723696733870,0.0181594,58234.0,58233.0,0.50298104]
[1723696734074,0.1281594,58234.0,58233.0,0.50298104]
[1723696734378,0.2863564,58234.0,58233.0,0.256938]
[1723696734770,0.060098,58233.0,58231.0,0.08384945]
[1723696735079,0.0601,58231.0,58228.0,0.00121753]
[1723696735386,0.060102,58229.0,58228.0,0.01645264]
[1723696735571,0.160102,58229.0,58228.0,0.01645264]
[1723696735768,0.160102,58229.0,58228.0,0.25760057]
[1723696736278,0.060106,58225.0,58224.0,0.06846463]
[1723696736579,0.510906,58225.0,58224.0,0.06846463]
[1723696736885,0.510906,58225.0,58224.0,0.32697656]
[1723696737072,0.510906,58225.0,58224.0,0.25851193]
[1723696737379,0.060108,58224.0,58223.0,0.25848028]
[1723696737679,0.060108,58224.0,58222.0,0.30890463]
[1723696737680,0.150108,58224.0,58222.0,0.30890463]
[1723696737979,0.3608,58223.0,58222.0,0.30890463]
[1723696738183,0.4608,58223.0,58222.0,0.30890463]
[1723696738375,0.520908,58223.0,58222.0,0.56688558]
[1723696738576,0.420908,58223.0,58222.0,0.49842095]
[1723696739668,0.424908,58223.0,58222.0,0.49842095]
[1723696739865,0.425908,58223.0,58222.0,0.50042095]
[1723696740180,0.7236,58223.0,58222.0,0.50042095]
[1723696741081,0.8136,58223.0,58222.0,0.56889302]
[1723696741475,0.8136,58223.0,58222.0,0.50042095]
[1723696741878,0.8126,58223.0,58222.0,0.50042095]
[1723696742079,0.8156,58223.0,58222.0,0.50042095]
[1723696743777,0.7256,58223.0,58222.0,0.50042095]
[1723696744572,0.8256,58223.0,58222.0,0.50042095]
[1723696745979,0.8256,58223.0,58222.0,0.25998095]
[1723696748785,0.885708,58223.0,58222.0,0.25998095]
[1723696755392,1.400988,58223.0,58222.0,0.25998095]
[1723696755589,1.34088,58223.0,58221.0,0.05135117]
[1723696755783,0.060112,58220.0,58217.0,0.05135117]
[1723696755983,0.3608,58218.0,58217.0,0.05135117]
[1723696756185,0.5008,58218.0,58216.0,0.31014296]
[1723696756387,0.5008,58218.0,58217.0,0.25879179]
[1723696756586,0.5008,58218.0,58216.0,0.05135117]
[1723696756883,0.5008,58218.0,58217.0,0.2583553]
[1723696757279,0.5008,58218.0,58217.0,0.2603553]
[1723696757685,0.5008,58218.0,58217.0,0.2583553]
[1723696758284,0.5018,58218.0,58217.0,0.2583553]
[1723696759994,0.5018,58218.0,58217.0,0.2613553]
[1723696761591,0.51692479,58218.0,58217.0,0.2613553]
[1723696762299,0.51692479,58218.0,58217.0,0.31270647]
[1723696763092,0.51692479,58218.0,58217.0,0.2613553]
[1723696763887,0.61192479,58218.0,58217.0,0.2613553]
[1723696764694,0.97272479,58218.0,58217.0,0.2613553]
[1723696764895,0.25112479,58218.0,58217.0,0.2613553]
[1723696765095,0.97272479,58218.0,58217.0,0.2613553]
[1723696770395,0.97272479,58218.0,58217.0,0.2623153]
[1723696773004,0.25112479,58218.0,58217.0,0.2623153]
[1723696773204,0.97272479,58218.0,58217.0,0.2623153]
[1723696773601,1.03283879,58218.0,58217.0,0.2623153]
[1723696775204,0.87772479,58218.0,58217.0,0.41167908]
[1723696775406,0.87772479,58218.0,58217.0,0.50687908]
[1723696776106,0.87772479,58218.0,58217.0,0.56699408]
[1723696776904,0.87772479,58218.0,58217.0,0.47199408]
[1723696778807,0.87772479,58218.0,58217.0,0.47147781]
[1723696779595,0.15612479,58218.0,58217.0,0.47147781]
[1723696779811,0.15612479,58218.0,58217.0,0.41136281]
[1723696780005,0.87772479,58218.0,58217.0,0.41136281]
[1723696781007,0.15612479,58218.0,58217.0,0.41136281]
[1723696781311,0.87772479,58218.0,58217.0,0.41136281]
[1723696782303,0.87772479,58218.0,58217.0,0.56096739]
[1723696783414,0.87772479,58218.0,58217.0,0.8281785]
[1723696785015,0.87772479,58218.0,58217.0,0.71614245]
[1723696785205,0.87772479,58218.0,58217.0,0.98329117]
[1723696786106,0.87772479,58218.0,58217.0,0.71614245]
[1723696786400,0.87772479,58218.0,58217.0,0.98329037]
[1723696787011,0.01612479,58218.0,58217.0,2.22040162]
[1723696787311,0.01612479,58218.0,58217.0,2.30254302]
[1723696787504,0.01612479,58218.0,58217.0,1.34521447]
[1723696787812,0.21112479,58218.0,58217.0,1.02615538]
[1723696788016,0.21112479,58218.0,58217.0,0.93041965]
[1723696788312,0.21112479,58218.0,58217.0,0.83522085]
[1723696788706,0.21112479,58218.0,58217.0,0.73229759]
[1723696790216,0.21112479,58218.0,58217.0,0.73232423]
[1723696791502,0.21112479,58218.0,58217.0,0.83524749]
[1723696791906,0.21112479,58218.0,58217.0,0.83428749]
[1723696794813,0.21112479,58218.0,58217.0,0.5671421]
[1723696795012,0.21112479,58218.0,58217.0,0.83428748]
[1723696796811,0.01612479,58218.0,58217.0,0.98940248]
[1723696797112,0.01612479,58218.0,58217.0,0.88647922]
[1723696797515,0.01612479,58218.0,58217.0,0.68937934]
[1723696797721,0.01612479,58218.0,58217.0,0.95651558]
[1723696798516,0.01612479,58218.0,58217.0,0.95651776]
[1723696798925,0.01612479,58218.0,58217.0,0.88647568]
[1723696799125,0.01612479,58218.0,58217.0,0.73136068]
[1723696799328,0.12612479,58218.0,58217.0,0.73136068]
[1723696799827,0.22882479,58218.0,58217.0,0.73136068]
[1723696800923,0.22882479,58218.0,58217.0,0.83470541]
[1723696801128,0.22882479,58218.0,58217.0,0.58216703]
[1723696802822,0.22882479,58218.0,58217.0,0.67716703]
[1723696803419,0.22882479,58218.0,58217.0,0.41001812]
[1723696803826,0.22882479,58218.0,58217.0,0.67717198]
[1723696804531,0.22882479,58218.0,58217.0,0.41001812]
[1723696804715,0.95042479,58218.0,58217.0,0.67717198]
[1723696804917,0.95042479,58218.0,58217.0,0.41001812]
[1723696805530,0.95042479,58218.0,58217.0,0.31501812]
[1723696806028,0.95042479,58218.0,58217.0,0.58313282]
[1723696810935,0.95042479,58218.0,58217.0,0.58313289]
[1723696811530,0.95042479,58218.0,58217.0,0.34812996]
[1723696811731,0.95042479,58218.0,58217.0,0.2623153]
[1723696812045,1.00109005,58218.0,58217.0,0.2623153]
[1723696812238,1.04542479,58218.0,58217.0,0.2623153]
[1723696813135,1.04542479,58218.0,58217.0,0.2593153]
[1723696813939,0.32382479,58218.0,58217.0,0.2593153]
[1723696814139,1.04542479,58218.0,58217.0,0.2593153]
[1723696815839,0.32382479,58218.0,58217.0,0.2593153]
[1723696816040,1.04542479,58218.0,58217.0,0.2593153]
[1723696817135,0.32382479,58218.0,58217.0,0.2593153]
[1723696817432,1.04542479,58218.0,58217.0,0.2593153]
[1723696817637,1.04542479,58218.0,58217.0,0.34512996]
[1723696818142,1.04542479,58218.0,58217.0,0.66655578]
[1723696819548,1.04542479,58218.0,58217.0,0.34512996]
[1723696819739,1.04542479,58218.0,58217.0,0.66661778]
[1723696820037,1.04542479,58218.0,58217.0,0.34512996]
[1723696820634,1.04542479,58218.0,58217.0,0.2593153]
[1723696822430,1.04542479,58218.0,58217.0,0.52648667]
[1723696822836,1.04542479,58218.0,58217.0,0.2593153]
[1723696825144,1.04542479,58218.0,58217.0,4.0293153]
[1723696826441,0.95042479,58218.0,58217.0,4.0293153]
[1723696826746,1.04542479,58218.0,58217.0,4.0293153]
[1723696828630,1.04542479,58218.0,58217.0,4.0283553]
[1723696829231,0.94272479,58218.0,58217.0,4.11416996]
[1723696829541,0.94272479,58218.0,58217.0,4.16874101]
[1723696831039,0.8326,58218.0,58217.0,4.23804135]
[1723696831234,0.7226,58218.0,58217.0,4.50520697]
[1723696831939,0.7226,58218.0,58217.0,4.50474448]
[1723696832335,0.7226,58218.0,58217.0,4.65435009]
[1723696833142,0.7226,58218.0,58217.0,4.40974448]
[1723696833346,0.9276,58218.0,58217.0,0.57962948]
[1723696833537,0.9276,58218.0,58217.0,0.66544901]
[1723696833737,1.03837926,58218.0,58217.0,0.2583553]
[1723696835341,1.903034,58218.0,58213.0,0.00088]
[1723696835540,1.903034,58218.0,58211.0,0.08583298]
[1723696835541,0.05103914,58214.0,58211.0,0.08583298]
[1723696835741,0.4558,58212.0,58209.0,0.08583298]
[1723696835940,0.3608,58210.0,58208.0,0.08583298]
[1723696836132,0.095,58209.0,58207.0,0.10000135]
[1723696836337,0.265,58209.0,58208.0,0.26721494]
[1723696836536,0.265,58209.0,58207.0,0.34194258]
[1723696836840,0.265,58209.0,58208.0,0.25890431]
[1723696837435,0.266,58209.0,58208.0,0.25890431]
[1723696837637,0.266,58209.0,58207.0,0.26490431]
[1723696837941,0.265,58209.0,58208.0,0.25612099]
[1723696838248,0.171,58209.0,58208.0,0.006]
[1723696838444,0.266,58209.0,58208.0,0.006]
[1723696838633,0.267,58209.0,58208.0,0.26212099]
[1723696838837,0.267,58209.0,58208.0,0.006]
[1723696839243,0.267,58209.0,58208.0,0.26320166]
[1723696840553,0.9886,58209.0,58208.0,0.26320166]
[1723696843344,0.98764,58209.0,58208.0,0.26320166]
[1723696843844,0.89264,58209.0,58208.0,0.26320166]
[1723696845340,0.98764,58209.0,58208.0,0.26320166]
[1723696845541,0.89264,58209.0,58208.0,0.26320166]
[1723696845737,0.89264,58209.0,58208.0,0.35820166]
[1723696846147,0.89264,58209.0,58208.0,4.12820166]
[1723696846844,0.89264,58209.0,58208.0,4.21403464]
[1723696847046,0.89264,58209.0,58208.0,4.39539108]
[1723696847244,0.89264,58209.0,58208.0,4.24115541]
[1723696847451,0.89264,58209.0,58208.0,4.53392351]
[1723696847750,0.89264,58209.0,58208.0,4.44753518]
[1723696847943,0.89264,58209.0,58208.0,4.39470543]
[1723696848147,0.89264,58209.0,58208.0,4.12751314]
[1723696848740,0.89264,58209.0,58208.0,4.04181333]
[1723696849143,0.89264,58209.0,58208.0,0.67747482]
[1723696850149,0.89264,58209.0,58208.0,0.67733853]
[1723696850549,0.89264,58209.0,58208.0,0.6773384]
[1723696850855,0.89264,58209.0,58208.0,0.27181333]
[1723696851354,0.89264,58209.0,58208.0,0.53900827]
[1723696851541,0.89264,58209.0,58208.0,0.62471734]
[1723696852150,0.89264,58209.0,58208.0,0.27181333]
[1723696854655,0.17104,58209.0,58208.0,0.27181333]
[1723696854847,0.89264,58209.0,58208.0,0.27181333]
[1723696857347,0.89264,58209.0,58208.0,0.62471732]
[1723696857853,0.89264,58209.0,58208.0,1.5674246]
[1723696858053,0.35377753,58215.0,58214.0,0.060118]
[1723696858257,0.35377753,58215.0,58214.0,0.21647162]
[1723696858559,0.35377753,58215.0,58214.0,4.66245478]
[1723696858747,0.35377753,58215.0,58214.0,4.56745478]
[1723696859349,0.35477753,58215.0,58214.0,4.56745478]
[1723696859563,0.35477753,58215.0,58214.0,4.41784651]
[1723696860257,0.35577753,58215.0,58214.0,4.41884651]
[1723696860655,0.56077753,58215.0,58214.0,0.001]
[1723696861354,0.56077753,58215.0,58214.0,0.0695775]
[1723696861648,0.56077753,58215.0,58214.0,0.001]
[1723696862961,0.207,58215.0,58214.0,0.001]
[1723696863167,0.988717,58215.0,58214.0,0.0696031]
[1723696863368,1.03975614,58215.0,58214.0,0.001]
[1723696863563,0.988717,58215.0,58214.0,0.001]
[1723696864583,1.03970516,58215.0,58214.0,0.001]
[1723696864861,0.988717,58215.0,58214.0,0.001]
[1723696865371,1.03970516,58215.0,58214.0,0.001]
[1723696865861,0.31810516,58215.0,58214.0,0.001]
[1723696866260,1.03970516,58215.0,58214.0,0.001]
[1723696867966,0.988717,58215.0,58214.0,0.001]
[1723696868761,0.8336,58215.0,58214.0,0.001]
[1723696868958,0.97959928,58215.0,58214.0,0.32723633]
[1723696869369,0.9286,58215.0,58214.0,0.25863323]
[1723696869669,0.9796025,58215.0,58214.0,0.06962313]
[1723696869868,0.9286,58215.0,58214.0,0.001]
[1723696870461,0.9796025,58215.0,58214.0,0.001]
[1723696871079,0.988717,58215.0,58214.0,0.001]
[1723696874367,1.0397195,58215.0,58214.0,0.001]
[1723696874575,0.988717,58215.0,58214.0,0.001]
[1723696878170,0.627917,58215.0,58214.0,0.001]
[1723696878672,0.627917,58215.0,58214.0,0.26817833]
[1723696879772,0.627917,58215.0,58214.0,0.26913833]
[1723696880366,0.5678,58215.0,58214.0,0.26913833]
[1723696880674,0.5678,58215.0,58214.0,0.26110265]
[1723696880868,0.5678,58215.0,58214.0,4.03110265]
[1723696881665,0.5678,58215.0,58214.0,0.26110265]
[1723696882272,0.5678,58215.0,58214.0,0.27552975]
[1723696883475,0.017468,58215.0,58214.0,1.78014984]
[1723696883672,0.01404927,58217.0,58216.0,0.060116]
[1723696883879,0.00025753,58220.0,58219.0,0.060113]
[1723696884074,0.00025753,58220.0,58219.0,0.82090196]
[1723696884272,0.00025753,58220.0,58219.0,1.99126406]
[1723696884671,0.00025753,58220.0,58219.0,5.76126406]
[1723696884876,0.00025753,58220.0,58219.0,5.86860798]
[1723696885076,0.00025753,58220.0,58219.0,5.86635562]
[1723696885287,0.00025753,58220.0,58219.0,5.75900192]
[1723696885778,0.00725753,58220.0,58219.0,5.66500192]
[1723696886079,0.16736953,58220.0,58219.0,0.13686851]
[1723696886280,0.10025753,58220.0,58217.0,0.0856702]
[1723696886482,0.095,58218.0,58214.0,0.1020573]
[1723696886774,0.095,58215.0,58214.0,0.0163871]
[1723696886978,0.205,58215.0,58214.0,0.0163871]
[1723696887175,0.205,58215.0,58214.0,0.27399646]
[1723696887385,0.205,58215.0,58214.0,0.25956936]
[1723696888171,0.206,58215.0,58214.0,0.26256936]
[1723696888573,0.096,58215.0,58214.0,0.26256936]
[1723696888877,0.097,58215.0,58214.0,0.26256936]
[1723696891085,0.197,58215.0,58214.0,0.26256936]
[1723696891584,0.197,58215.0,58214.0,0.52973831]
[1723696891784,0.5578,58215.0,58214.0,0.52973831]
[1723696893778,0.5578,58215.0,58214.0,0.26256936]
[1723696896988,0.5578,58215.0,58214.0,4.03256936]
[1723696897874,0.197,58215.0,58214.0,4.03256936]
[1723696898092,0.5578,58215.0,58214.0,4.03256936]
[1723696900693,0.5578,58215.0,58214.0,0.26256936]
[1723696901799,0.5578,58215.0,58214.0,0.26160936]
[1723696902285,1.73839064,58214.0,58213.0,3.77088]
[1723696902492,1.84839064,58214.0,58213.0,3.77]
[1723696902692,1.84839064,58214.0,58213.0,4.02610808]
[1723696903388,1.84839064,58214.0,58213.0,4.02810808]
[1723696903581,1.84939064,58214.0,58213.0,4.02810808]
[1723696905679,1.90950864,58214.0,58213.0,4.02810808]
[1723696905895,1.90950864,58214.0,58213.0,4.12484014]
[1723696906196,0.06012,58213.0,58209.0,0.08592773]
[1723696906387,0.20012,58213.0,58212.0,0.0685802]
[1723696906587,0.56092,58213.0,58211.0,0.0685802]
[1723696907585,0.56092,58213.0,58212.0,0.0685802]
[1723696907786,0.65692,58213.0,58212.0,0.0685802]
[1723696908887,0.65692,58213.0,58212.0,0.0705802]
[1723696910194,0.65692,58213.0,58212.0,0.002]
[1723696910395,0.65592,58213.0,58212.0,0.002]
[1723696910590,0.65692,58213.0,58212.0,0.002]
[1723696911095,0.65692,58213.0,58210.0,0.0685802]
[1723696911096,0.5968,58213.0,58210.0,0.0685802]
[1723696911292,0.5968,58213.0,58198.0,0.060134]
[1723696911293,0.060128,58204.0,58203.0,0.05142642]
[1723696911484,0.12026,58202.0,58201.0,0.05142642]
[1723696911685,0.060132,58200.0,58198.0,0.05142642]
[1723696911892,0.060134,58198.0,58197.0,0.05142642]
[1723696912093,0.6058,58198.0,58194.0,0.07738082]
[1723696912288,0.515937,58195.0,58194.0,0.07738082]
[1723696912493,0.675937,58195.0,58194.0,0.0259544]
[1723696912687,0.72690567,58195.0,58194.0,0.0259544]
[1723696912897,0.675937,58195.0,58194.0,0.0259544]
[1723696913200,0.736075,58195.0,58194.0,0.0259544]
[1723696913496,1.251595,58195.0,58194.0,0.0259544]
[1723696913999,1.394195,58195.0,58194.0,0.0259544]
[1723696914199,1.44502255,58195.0,58194.0,0.0259544]
[1723696914592,1.78488455,58195.0,58194.0,0.0259544]
[1723696914795,1.78588455,58195.0,58194.0,0.0309544]
[1723696915187,1.795195,58195.0,58194.0,0.0309544]
[1723696915389,1.67392,58195.0,58177.0,0.05142642]
[1723696915594,0.3608,58179.0,58178.0,0.00014607]
[1723696915891,0.52100378,58179.0,58178.0,0.25842569]
[1723696916092,0.52004378,58179.0,58178.0,0.25842569]
[1723696916498,0.52004378,58179.0,58178.0,0.00014607]
[1723696916802,1.49583778,58179.0,58178.0,0.00014607]
[1723696917894,1.09683778,58179.0,58178.0,0.00514607]
[1723696918399,1.49683778,58179.0,58178.0,0.00014607]
[1723696918594,1.09783778,58179.0,58178.0,0.00514607]
[1723696918801,1.49783778,58179.0,58178.0,0.00514607]
[1723696919399,1.49683778,58179.0,58178.0,0.00014607]
[1723696919597,1.49683778,58179.0,58178.0,0.00414607]
[1723696920295,1.49583778,58179.0,58178.0,0.00414607]
[1723696920495,1.49683778,58179.0,58178.0,0.00414607]
[1723696921305,1.55699178,58179.0,58178.0,0.00414607]
[1723696921507,1.09683778,58179.0,58178.0,0.00414607]
[1723696921702,0.58119778,58179.0,58178.0,0.00414607]
[1723696922807,0.52104378,58179.0,58178.0,0.06430107]
[1723696922999,0.36104378,58179.0,58178.0,0.06430107]
[1723696923203,0.36104378,58179.0,58178.0,0.32189364]
[1723696923393,0.46004378,58179.0,58178.0,0.32189364]
[1723696923599,0.46004378,58179.0,58178.0,0.00414607]
[1723696923800,0.46004378,58179.0,58178.0,0.00014607]
[1723696924000,0.46504378,58179.0,58178.0,0.00014607]
[1723696924510,0.36504378,58179.0,58178.0,0.25905952]
[1723696924901,0.36504378,58179.0,58178.0,0.31921452]
[1723696926406,0.36504378,58179.0,58178.0,5.00485452]
[1723696927203,0.36504378,58179.0,58178.0,5.01872847]
[1723696927706,0.36504378,58179.0,58178.0,4.08921452]
[1723696927909,0.46504378,58179.0,58178.0,4.60485452]
[1723696928206,0.36504378,58179.0,58178.0,4.60485452]
[1723696928596,0.3608,58199.0,58179.0,0.51564]
[1723696928802,0.5008,58199.0,58188.0,0.3608]
[1723696929001,0.5008,58199.0,58189.0,0.1478]
[1723696929211,0.5008,58199.0,58189.0,0.40606008]
[1723696929708,0.00021858,58198.0,58189.0,0.40606008]
[1723696929904,0.14021858,58198.0,58190.0,0.1501]
[1723696930504,0.14021858,58198.0,58191.0,0.25800293]
[1723696930701,0.14021858,58198.0,58191.0,0.31814493]
[1723696930907,0.14021858,58198.0,58192.0,0.1436]
[1723696931295,0.14021858,58198.0,58193.0,0.25866809]
[1723696932400,0.15321858,58198.0,58193.0,0.25866809]
[1723696932911,0.16521858,58198.0,58193.0,0.25966809]
[1723696933608,0.16721858,58198.0,58193.0,0.25966809]
[1723696934405,0.060136,58197.0,58193.0,0.25966809]
[1723696934609,0.210136,58197.0,58193.0,0.25966809]
[1723696935513,0.224136,58197.0,58193.0,0.25966809]
[1723696936012,0.238136,58197.0,58193.0,0.25966809]
[1723696939212,0.178,58197.0,58193.0,0.25966809]
[1723696940300,0.3608,58196.0,58193.0,0.25966809]
[1723696940508,0.5108,58196.0,58193.0,0.25966809]
[1723696940916,0.15,58196.0,58193.0,0.25966809]
[1723696941103,0.5108,58196.0,58193.0,0.25966809]
[1723696941808,0.5248,58196.0,58193.0,0.25966809]
[1723696942311,0.5388,58196.0,58193.0,0.25966809]
[1723696947810,0.178,58196.0,58193.0,0.25966809]
[1723696948116,0.5388,58196.0,58193.0,0.25966809]
[1723696949125,0.5388,58196.0,58194.0,0.05142642]
[1723696949414,0.5388,58196.0,58195.0,0.2577889]
[1723696950805,0.5388,58196.0,58194.0,0.25743258]
[1723696951216,0.178,58196.0,58195.0,0.31073574]
[1723696951416,0.5248,58196.0,58194.0,0.05242642]
[1723696951620,0.5388,58196.0,58194.0,0.31173574]
[1723696951819,0.178,58196.0,58195.0,0.25930932]
[1723696952015,0.5388,58196.0,58194.0,0.05242642]
[1723696952223,0.5388,58196.0,58194.0,0.001]
[1723696952413,0.178,58196.0,58195.0,0.25690485]
[1723696952615,0.5388,58196.0,58195.0,0.25690485]
[1723696953119,0.5388,58196.0,58195.0,0.25790485]
[1723696953319,0.5388,58196.0,58195.0,0.001]
[1723696953625,0.5388,58196.0,58195.0,0.25886537]
[1723696956420,0.15530153,58196.0,58195.0,1.28023248]
[1723696956620,0.028,58196.0,58195.0,1.34274019]
[1723696956918,0.028,58196.0,58195.0,5.57873422]
[1723696957811,0.00021858,58198.0,58197.0,0.060136]
[1723696958016,0.00021858,58198.0,58197.0,0.10584511]
[1723696958318,0.00021858,58198.0,58197.0,1.53091822]
[1723696958815,0.00021858,58198.0,58197.0,5.23841051]
[1723696959025,0.00221858,58198.0,58197.0,5.30591822]
[1723696959219,0.00221858,58198.0,58197.0,4.84341051]
[1723696961125,0.00221858,58198.0,58197.0,5.34620891]
[1723696962328,0.00221858,58198.0,58197.0,4.94620891]
[1723696962835,0.00221858,58198.0,58197.0,5.34620891]
[1723696963222,0.00221858,58198.0,58197.0,5.24341051]
[1723696966320,0.00221858,58198.0,58197.0,5.60421051]
[1723696968129,0.00221858,58198.0,58197.0,5.20421051]
[1723696969937,0.00221858,58198.0,58197.0,5.20239457]
[1723696970340,0.00221858,58198.0,58197.0,5.46960198]
[1723696971842,0.00221858,58198.0,58197.0,4.76411765]
[1723696972528,0.00221858,58198.0,58197.0,4.40331765]
[1723696972732,0.00221858,58198.0,58197.0,4.76411765]
[1723696973336,0.00221858,58198.0,58197.0,4.91375361]
[1723696974447,0.00221858,58198.0,58197.0,4.9137911]
[1723696975946,0.00221858,58198.0,58197.0,4.64658381]
[1723696976141,0.00221858,58198.0,58197.0,4.91379122]
[1723696976549,0.00221858,58198.0,58197.0,5.15431122]
[1723696977243,0.00221858,58198.0,58197.0,5.00467514]
[1723696977434,0.00221858,58198.0,58197.0,5.15431129]
[1723696978142,0.00221858,58198.0,58197.0,4.79351129]
[1723696978445,0.00221858,58198.0,58197.0,5.15431129]
[1723696979843,0.00221858,58198.0,58197.0,5.24931129]
[1723696980740,0.00221858,58198.0,58197.0,5.53431127]
[1723696980942,0.00221858,58198.0,58197.0,5.24931127]
[1723696982049,0.00221858,58198.0,58197.0,1.42697367]
[1723696982251,0.00221858,58198.0,58197.0,1.27733753]
[1723696983146,0.00221858,58198.0,58197.0,1.17453913]
[1723696983542,0.00221858,58198.0,58197.0,1.26953913]
[1723696984052,0.00221858,58198.0,58197.0,1.23467513]
[1723696985146,0.00221858,58198.0,58197.0,5.00467513]
[1723696985342,0.00221858,58198.0,58197.0,5.15431316]
[1723696986251,0.00221858,58198.0,58197.0,5.92479092]
[1723696986450,0.00025775,58200.0,58199.0,0.060134]
[1723696986750,0.00025775,58200.0,58199.0,0.43351452]
[1723696986947,0.00025775,58200.0,58199.0,1.20717696]
[1723696987152,0.00025775,58200.0,58199.0,1.40420742]
[1723696987351,0.00025775,58200.0,58199.0,1.55384175]
[1723696987652,0.00130829,58200.0,58199.0,1.41920618]
[1723696987852,0.00130829,58200.0,58199.0,1.30163572]
[1723696988147,0.00130829,58200.0,58199.0,1.73180139]
[1723696988353,0.00130829,58200.0,58199.0,1.21632139]
[1723696988552,0.00130829,58200.0,58199.0,1.31496496]
[1723696988756,0.00130829,58200.0,58199.0,1.46459908]
[1723696988943,0.00130829,58200.0,58199.0,1.73180286]
[1723696989350,0.00130829,58200.0,58199.0,1.21632286]
[1723696989657,0.00130829,58200.0,58199.0,0.80745642]
[1723696990051,0.00130829,58200.0,58199.0,0.54025264]
[1723696992553,0.00130829,58200.0,58199.0,0.80746337]
[1723696993263,0.00130829,58200.0,58199.0,1.2304358]
[1723696993451,0.00130829,58200.0,58199.0,1.38007381]
[1723696994049,0.00130829,58200.0,58199.0,1.2304358]
[1723696994259,0.00130829,58200.0,58199.0,1.38007396]
[1723696995159,0.00130829,58200.0,58199.0,1.11286313]
[1723696995358,0.00130829,58200.0,58199.0,1.38007397]
[1723696995748,0.15090829,58200.0,58199.0,1.38007397]
[1723696995952,0.15090829,58200.0,58199.0,1.31993997]
[1723696996255,0.61170829,58200.0,58199.0,0.58317262]
[1723696996650,0.25090829,58200.0,58199.0,0.58317262]
[1723696996849,0.25090829,58200.0,58199.0,0.48011864]
[1723696997752,0.25090829,58200.0,58199.0,0.74735177]
[1723696998054,0.25090829,58200.0,58199.0,0.85040575]
[1723696998256,0.25090829,58200.0,58199.0,0.74735177]
[1723696998651,0.15090829,58200.0,58199.0,0.70074929]
[1723696998850,0.15090829,58200.0,58199.0,0.70075041]
[1723696999257,0.24090829,58200.0,58199.0,0.58439026]
[1723696999562,0.60170829,58200.0,58199.0,0.015]
[1723696999955,0.66184129,58200.0,58199.0,0.015]
[1723697000254,0.66184129,58200.0,58199.0,0.08365406]
[1723697000658,1.17632129,58200.0,58199.0,0.006]
[1723697000851,1.57932129,58200.0,58199.0,0.003]
[1723697001460,1.51918829,58200.0,58197.0,0.00096]
[1723697001758,0.06014,58193.0,58189.0,0.02775328]
[1723697001956,0.06014,58193.0,58188.0,0.00025775]
[1723697001957,0.060144,58189.0,58188.0,0.05173732]
[1723697002150,0.210144,58189.0,58188.0,0.00025775]
[1723697002358,1.286004,58189.0,58188.0,0.00025775]
[1723697003152,1.287004,58189.0,58188.0,0.00625775]
[1723697003551,0.060151,58182.0,58176.0,0.060157]
[1723697003857,0.060151,58182.0,58168.0,0.32637242]
[1723697003858,0.3608,58179.0,58168.0,0.24052]
[1723697004061,0.520954,58179.0,58171.0,0.0993123]
[1723697004262,1.436594,58179.0,58171.0,0.0861164]
[1723697004753,1.797394,58179.0,58171.0,0.0259544]
[1723697004951,1.79744454,58179.0,58171.0,0.0259544]
[1723697005859,1.39744454,58179.0,58178.0,0.00314607]
[1723697006251,1.39944454,58179.0,58178.0,0.00314607]
[1723697006454,1.80044454,58179.0,58178.0,0.00114607]
[1723697007064,1.40044454,58179.0,58178.0,0.00114607]
[1723697007262,1.03964454,58179.0,58178.0,0.00114607]
[1723697007561,0.93964454,58179.0,58178.0,0.00114607]
[1723697008154,0.95315582,58179.0,58178.0,0.00114607]
[1723697008661,1.51315582,58179.0,58178.0,0.00114607]
[1723697008964,0.53736182,58179.0,58178.0,0.00114607]
[1723697009167,0.52385054,58179.0,58178.0,0.00114607]
[1723697009464,0.36385054,58179.0,58178.0,0.00114607]
[1723697009965,0.00305054,58179.0,58178.0,0.00114607]
[1723697011664,0.00305054,58179.0,58178.0,0.32074498]
[1723697013859,0.00305054,58179.0,58178.0,1.19718498]
[1723697014061,0.00025775,58184.0,58183.0,0.06015]
[1723697014257,0.3608,58193.0,58192.0,0.060141]
[1723697014459,0.5308,58193.0,58192.0,0.060141]
[1723697014661,0.5308,58193.0,58192.0,0.31665317]